lending/lending_fUSD_20240112
["ID","MTS","AMOUNT","RATE_DAILY","PERIOD"]
[311297373,1705045838595,-2617.16595295,0.00022999,2]
[311297374,1705045838606,-630.11452839,0.00022999,2]
[311297375,1705045838616,-279.00084549,0.00022999,2]
[311297376,1705045838625,-155.0,0.00022999,2]
[311297377,1705045838634,-160.46586719,0.00022999,2]
[311297378,1705045838643,-265.185965,0.00022999,2]
[311297379,1705045838653,-2317.09975572,0.00022999,2]
[311297380,1705045838663,-248.46308844,0.00022999,2]
[311297381,1705045838675,-1690006.03324099,0.00023,2]
[311297386,1705045839331,-349.18179256,0.00023,2]
[311297387,1705045839387,-1256.41977766,0.00023,2]
[311297388,1705045839415,-984.75136064,0.00023,2]
[311297389,1705045839428,-491184.016607,0.00023,2]
[311297390,1705045839437,-4953.5805989,0.00023026,2]
[311297391,1705045839446,-158.13,0.00023042,2]
[311297392,1705045839456,-155.36,0.00023057,2]
[311297393,1705045839465,-500.0,0.00023064,2]
[311297394,1705045839474,-178.05954316,0.0002307,2]
[311297395,1705045839483,-916.26497812,0.00023085,2]
[311297396,1705045839492,-379.3,0.00023089,2]
[311297397,1705045839501,-150.0,0.00023096,2]
[311297398,1705045839511,-200.0,0.00023126,2]
[311297399,1705045839520,-159.84,0.00023187,2]
[311297400,1705045839529,-178.05954316,0.00023201,2]
[311297401,1705045839538,-379.3,0.00023204,2]
[311297402,1705045839547,-155.36,0.00023213,2]
[311297403,1705045839557,-888.59174546,0.00023224,2]
[311297404,1705045839566,-7999.99,0.00023288,3]
[311297405,1705045839575,-500.0,0.00023288,2]
[311297406,1705045839584,-377.53825883,0.00023288,2]
[311297407,1705045839593,-539.59730672,0.00023288,2]
[311297408,1705045839602,-394.96927842,0.00023288,2]
[311297409,1705045839612,-195.99089582,0.00023288,2]
[311297410,1705045839622,-500.0,0.00023312,2]
[311297411,1705045839631,-379.3,0.00023319,2]
[311297412,1705045839640,-178.05954316,0.00023332,2]
[311297413,1705045839650,-168.82,0.00023355,2]
[311297414,1705045839659,-155.36,0.00023369,2]
[311297415,1705045839668,-379.3,0.00023433,2]
[311297416,1705045839678,-200.0,0.00023436,2]
[311297417,1705045839687,-178.05954316,0.00023462,2]
[311297418,1705045839697,-155.36,0.00023525,2]
[311297419,1705045839707,-151.57,0.00023527,2]
[311297420,1705045839716,-379.3,0.00023548,2]
[311297421,1705045839725,-500.0,0.0002356,2]
[311297422,1705045839734,-159.84,0.00023564,2]
[311297423,1705045839743,-178.05954316,0.00023593,2]
[311297426,1705045839752,-150.0,0.00023644,2]
[311297428,1705045839761,-379.3,0.00023663,2]
[311297430,1705045839770,-151.57,0.00023665,2]
[311297431,1705045839779,-155.36,0.0002368,2]
[311297432,1705045839788,-205.0,0.0002372,2]
[311297433,1705045839797,-178.05954316,0.00023724,2]
[311297435,1705045839806,-200.0,0.00023746,2]
[311297437,1705045839816,-379.3,0.00023778,2]
[311297439,1705045839824,-168.82,0.00023787,2]
[311297441,1705045839833,-151.57,0.00023804,2]
[311297444,1705045839842,-500.0,0.00023808,2]
[311297447,1705045839852,-459.25,0.00023825,2]
[311297450,1705045839861,-155.36,0.00023836,2]
[311297454,1705045839870,-178.05954316,0.00023855,2]
[311297458,1705045839879,-379.3,0.00023893,2]
[311297461,1705045839889,-159.84,0.00023941,2]
[311297471,1705045839898,-151.57,0.00023942,2]
[311297472,1705045840126,-178.05954316,0.00023985,2]
[311297473,1705045840138,-155.36,0.00023992,2]
[311297474,1705045840147,-519.23185342,0.00023999,2]
[311297475,1705045840157,-200.89664823,0.00024,2]
[311297476,1705045840166,-379.3,0.00024008,2]
[311297477,1705045840177,-500.0,0.00024056,2]
[311297478,1705045840186,-200.0,0.00024056,2]
[311297479,1705045840194,-800.0,0.00024056,2]
[311297480,1705045840204,-200.0,0.00024056,2]
[311297481,1705045840214,-151.57,0.00024081,2]
[311297482,1705045840224,-864.0,0.000241,2]
[311297483,1705045840233,-1000.0,0.000241,2]
[311297484,1705045840243,-178.05954316,0.00024116,2]
[311297485,1705045840252,-150.0,0.00024192,2]
[311297486,1705045840262,-2277.00071775,0.00024196,2]
[311297487,1705045840271,-151.57,0.00024219,2]
[311297488,1705045840281,-178.05954316,0.00024247,2]
[311297489,1705045840290,-167.65,0.00024297,2]
[311297490,1705045840299,-159.84,0.00024319,2]
[311297491,1705045840309,-672.0,0.00024349,2]
[311297492,1705045840319,-151.57,0.00024357,2]
[311297493,1705045840330,-178.05954316,0.00024377,2]
[311297494,1705045840340,-278.0,0.00024452,2]
[311297495,1705045840350,-462.4,0.00024455,2]
[311297496,1705045840361,-469.23,0.00024471,2]
[311297497,1705045840371,-1062.69269725,0.00024486,2]
[311297498,1705045840381,-151.57,0.00024496,2]
[311297499,1705045840391,-178.05954316,0.00024508,2]
[311297500,1705045840402,-401.15,0.00024548,2]
[311297501,1705045840412,-260.19,0.00024548,2]
[311297502,1705045840422,-151.57,0.00024634,2]
[311297503,1705045840435,-178.05954316,0.00024639,2]
[311297504,1705045840444,-250.0,0.00024658,2]
[311297505,1705045840455,-159.84,0.00024696,2]
[311297506,1705045840464,-150.0,0.0002474,2]
[311297507,1705045840474,-178.05954316,0.00024769,2]
[311297508,1705045840483,-151.57,0.00024773,2]
[311297509,1705045840493,-500.0,0.000248,2]
[311297510,1705045840503,-459.25,0.00024804,2]
[311297511,1705045840512,-178.05954316,0.000249,2]
[311297512,1705045840521,-151.57,0.00024911,2]
[311297513,1705045840531,-200.0,0.00024986,2]
[311297514,1705045840541,-4651.86755386,0.00024988,2]
[311297515,1705045840550,-1017.41142143,0.00025,2]
[311297516,1705045840559,-270.85253986,0.00025,2]
[311297517,1705045840570,-1582.37478172,0.00025,2]
[311297518,1705045840579,-167.16432493,0.00025,2]
[311297519,1705045840588,-1247.21446884,0.00025,2]
[311297520,1705045840600,-211.17259107,0.00025,2]
[311297521,1705045840609,-20000.0,0.00025,2]
[311297522,1705045840617,-550.0,0.00025,3]
[311297523,1705045840628,-272.08,0.00025,2]
[311297524,1705045840637,-151.57,0.00025049,2]
[311297525,1705045840647,-159.84,0.00025073,2]
[311297526,1705045840656,-401.15,0.00025123,2]
[311297527,1705045840665,-151.57,0.00025188,2]
[311297528,1705045840678,-166.28597973,0.0002519,2]
[311297529,1705045840687,-3504.0,0.000252,2]
[311297530,1705045840697,-34757.0,0.000252,2]
[311297531,1705045840706,-936.12,0.00025223,2]
[311297532,1705045840715,-150.0,0.00025288,2]
[311297533,1705045840725,-151.57,0.00025326,2]
[311297534,1705045840734,-159.84,0.0002545,2]
[311297535,1705045840743,-151.57,0.00025464,2]
[311297536,1705045840753,-2277.00071775,0.00025467,2]
[311297537,1705045840762,-843.39,0.00025507,2]
[311297538,1705045840771,-408.0,0.00025507,2]
[311297539,1705045840781,-261.37,0.00025507,2]
[311297540,1705045840789,-627.82,0.00025507,2]
[311297541,1705045840798,-152.91,0.00025507,2]
[311297542,1705045840807,-308.68,0.00025507,2]
[311297544,1705045840817,-152.92,0.00025507,2]
[311297546,1705045840826,-194.95,0.00025507,2]
[311297548,1705045840835,-844.33,0.00025507,2]
[311297550,1705045840845,-408.0,0.00025507,2]
[311297552,1705045840854,-303.57,0.00025507,2]
[311297554,1705045840862,-293.92,0.00025507,2]
[311297556,1705045840871,-314.16,0.00025507,2]
[311297559,1705045840880,-408.0,0.00025507,2]
[311297562,1705045840888,-293.92,0.00025507,2]
[311297565,1705045840897,-314.16,0.00025507,2]
[311297567,1705045840906,-408.0,0.00025507,2]
[311297570,1705045840915,-293.92,0.00025507,2]
[311297573,1705045840929,-314.16,0.00025507,2]
[311297576,1705045840938,-822.53,0.00025507,2]
[311297579,1705045840949,-293.92,0.00025507,2]
[311297581,1705045840958,-314.16,0.00025507,2]
[311297583,1705045840967,-870.35,0.00025507,2]
[311297585,1705045840976,-293.92,0.00025507,2]
[311297587,1705045840985,-238.45,0.00025507,2]
[311297589,1705045840993,-500.0,0.00025544,2]
[311297591,1705045841002,-151.57,0.00025603,2]
[311297593,1705045841011,-151.57,0.00025741,2]
[311297595,1705045841022,-459.25,0.00025782,2]
[311297597,1705045841031,-159.84,0.00025827,2]
[311297599,1705045841040,-150.0,0.00025836,2]
[311297601,1705045841049,-151.57,0.0002588,2]
[311297603,1705045841058,-200.0,0.00025916,2]
[311297605,1705045841067,-188.0,0.00025925,2]
[311297607,1705045841076,-150.0,0.00026079,2]
[311297609,1705045841085,-160.88,0.00026156,2]
[311297611,1705045841094,-1000.0,0.000262,2]
[311297613,1705045841104,-159.84,0.00026205,2]
[311297614,1705045841114,-500.0,0.00026287,2]
[311297616,1705045841124,-314.16,0.00026329,2]
[311297617,1705045841133,-314.16,0.00026329,2]
[311297618,1705045841142,-314.16,0.00026329,2]
[311297619,1705045841151,-247.34,0.00026329,2]
[311297620,1705045841160,-150.0,0.00026384,2]
[311297621,1705045841169,-1000.0,0.000265,2]
[311297622,1705045841182,-1062.69269725,0.00026555,3]
[311297623,1705045841192,-15928.26,0.00026575,2]
[311297624,1705045841201,-469.23,0.00026735,2]
[311297625,1705045841210,-2277.00071775,0.00026737,2]
[311297626,1705045841220,-205.0,0.00026744,6]
[311297627,1705045841229,-459.25,0.00026761,2]
[311297628,1705045841238,-1000.0,0.000268,2]
[311297629,1705045841247,-200.0,0.00026845,2]
[311297630,1705045841257,-385.0,0.0002692,2]
[311297631,1705045841267,-2451.123,0.0002692,2]
[311297632,1705045841277,-1355.0,0.0002692,2]
[311297633,1705045841286,-1851.0,0.0002692,2]
[311297634,1705045841296,-244.288,0.0002692,2]
[311297635,1705045841306,-3066.206,0.0002692,2]
[311297636,1705045841316,-837.0,0.0002692,2]
[311297637,1705045841325,-945.0,0.0002692,2]
[311297638,1705045841334,-740.698,0.0002692,2]
[311297639,1705045841343,-1252.0,0.0002692,2]
[311297640,1705045841353,-526.0,0.0002692,2]
[311297641,1705045841362,-1234.0,0.0002692,2]
[311297642,1705045841372,-620.753,0.0002692,2]
[311297643,1705045841382,-1138.0,0.0002692,2]
[311297644,1705045841391,-995.0,0.0002692,2]
[311297645,1705045841400,-1931.0,0.0002692,2]
[311297646,1705045841410,-879.0,0.0002692,2]
[311297647,1705045841419,-240.413,0.0002692,2]
[311297648,1705045841432,-461.386,0.0002692,2]
[311297649,1705045841441,-320.138,0.0002692,2]
[311297650,1705045841450,-533.231,0.0002692,2]
[311297651,1705045841459,-214.0,0.0002692,2]
[311297652,1705045841469,-5569.0,0.0002692,2]
[311297653,1705045841478,-2270.0,0.0002692,2]
[311297654,1705045841487,-19678.0,0.0002692,2]
[311297655,1705045841496,-42016.0,0.0002692,2]
[311297656,1705045841505,-4168.0,0.0002692,2]
[311297657,1705045841514,-2901.0,0.0002692,2]
[311297658,1705045841523,-8083.0,0.0002692,2]
[311297659,1705045841533,-5833.341,0.0002692,2]
[311297660,1705045841542,-150.0,0.0002692,2]
[311297661,1705045841551,-1060.697,0.0002692,2]
[311297662,1705045841560,-152.0,0.0002692,2]
[311297663,1705045841569,-153.039,0.0002692,2]
[311297664,1705045841578,-150.0,0.0002692,2]
[311297665,1705045841587,-153.0,0.0002692,2]
[311297666,1705045841597,-152.252,0.0002692,2]
[311297667,1705045841606,-153.083,0.0002692,2]
[311297668,1705045841615,-150.0,0.00026932,2]
[311297669,1705045841625,-165.64326443,0.00027,2]
[311297670,1705045841634,-600.0,0.00027,3]
[311297671,1705045841644,-500.0,0.00027031,2]
[311297672,1705045841653,-672.0,0.00027055,2]
[311297673,1705045841662,-1000.0,0.000271,2]
[311297674,1705045841671,-223.225,0.00027141,2]
[311297675,1705045841683,-152.913,0.00027141,2]
[311297676,1705045841692,-150.0,0.00027141,2]
[311297677,1705045841702,-150.0,0.00027141,2]
[311297678,1705045841710,-462.4,0.00027172,2]
[311297679,1705045841720,-162.3152197,0.00027397,2]
[311297680,1705045841729,-250.0,0.00027397,2]
[311297681,1705045841738,-500.0,0.000274,2]
[311297682,1705045841747,-500.0,0.000274,2]
[311297683,1705045841757,-500.0,0.000274,2]
[311297684,1705045841766,-500.0,0.000274,2]
[311297685,1705045841776,-500.0,0.000274,2]
[311297686,1705045841785,-500.0,0.000274,2]
[311297687,1705045841798,-500.0,0.000274,2]
[311297688,1705045841807,-500.0,0.000274,2]
[311297689,1705045841817,-500.0,0.000274,2]
[311297690,1705045841826,-4028.65770379,0.000274,2]
[311297691,1705045841836,-1000.0,0.000274,2]
[311297692,1705045841846,-250.0,0.000274,2]
[311297693,1705045841855,-150.0,0.0002748,2]
[311297694,1705045841866,-1000.0,0.000277,2]
[311297695,1705045841876,-459.25,0.00027739,2]
[311297696,1705045841885,-500.0,0.00027775,2]
[311297697,1705045841895,-200.0,0.00027775,2]
[311297698,1705045841904,-500.0,0.00027776,2]
[311297699,1705045841914,-369.6782,0.00027909,2]
[311297700,1705045841923,-196.62103059,0.00027999,2]
[311297701,1705045841937,-150.01,0.00027999,2]
[311297702,1705045841946,-3292.32224499,0.00027999,2]
[311297703,1705045841957,-1685.84676378,0.00028,2]
[311297704,1705045841966,-687.51052193,0.00028,2]
[311297705,1705045841976,-150.0,0.00028,2]
[311297706,1705045841986,-3000.0,0.00028,2]
[311297707,1705045841996,-300.0,0.00028,2]
[311297708,1705045842006,-1000.0,0.00028,2]
[311297709,1705045842016,-150.0,0.00028,2]
[311297710,1705045842027,-829.3617692,0.00028,2]
[311297711,1705045842038,-2277.00071775,0.00028007,2]
[311297712,1705045842048,-27682.8883128,0.00028009,2]
[311297713,1705045842059,-1575.18863,0.00028009,2]
[311297714,1705045842069,-4699.3070952,0.00028009,2]
[311297715,1705045842079,-12791.9113248,0.00028009,2]
[311297716,1705045842089,-150.0,0.00028028,2]
[311297717,1705045842098,-500.0,0.00028208,2]
[311297718,1705045842108,-720.7,0.00028286,2]
[311297719,1705045842118,-1099.42571768,0.0002847,2]
[311297720,1705045842128,-183.0,0.00028488,2]
[311297721,1705045842138,-150.0,0.00028576,2]
[311297722,1705045842148,-1867.0,0.000286,2]
[311297723,1705045842158,-1062.69269725,0.00028624,4]
[311297724,1705045842168,-500.0,0.00028641,2]
[311297725,1705045842182,-459.25,0.00028718,2]
[311297726,1705045842192,-1000.0,0.0002897,2]
[311297727,1705045842202,-901.18390824,0.0002897,2]
[311297728,1705045842212,-202.68612241,0.00028998,2]
[311297729,1705045842222,-202.94800345,0.00028998,2]
[311297730,1705045842233,-469.23,0.00028999,2]
[311297731,1705045842243,-718.17,0.00029,2]
[311297732,1705045842253,-257797.48421318,0.00029,2]
[311297733,1705045842263,-650.0,0.00029,3]
[311297734,1705045842273,-5497.644944,0.00029,2]
[311297735,1705045842282,-300.0,0.00029,2]
[311297737,1705045842292,-437.7741,0.00029,2]
[311297739,1705045842301,-150.0,0.00029,2]
[311297741,1705045842311,-829.3617692,0.00029,2]
[311297743,1705045842321,-2800.91,0.00029009,2]
[311297745,1705045842330,-5511.25,0.00029009,2]
[311297748,1705045842339,-19623.4,0.00029009,2]
[311297749,1705045842349,-531.0,0.00029009,2]
[311297750,1705045842359,-451.06,0.00029009,2]
[311297751,1705045842368,-1431.71,0.00029009,2]
[311297752,1705045842378,-500.0,0.00029073,2]
[311297753,1705045842387,-150.0,0.00029124,2]
[311297754,1705045842397,-2277.00071775,0.00029278,2]
[311297755,1705045842406,-1000.0,0.0002947,2]
[311297756,1705045842415,-500.0,0.0002947,2]
[311297757,1705045842427,-1329.93848643,0.00029499,2]
[311297758,1705045842437,-1068.13433629,0.000295,2]
[311297759,1705045842446,-500.0,0.00029506,2]
[311297760,1705045842455,-150.0,0.00029672,2]
[311297761,1705045842465,-459.25,0.00029696,2]
[311297762,1705045842474,-672.0,0.0002976,2]
[311297763,1705045842483,-205.0,0.00029767,11]
[311297764,1705045842492,-1000.0,0.0002977,2]
[311297765,1705045842502,-500.0,0.0002977,2]
[311297766,1705045842511,-406.65404562,0.00029796,2]
[311297767,1705045842521,-1213.72,0.00029798,2]
[311297768,1705045842530,-155.11562498,0.00029798,2]
[311297769,1705045842539,-433.24771262,0.00029799,2]
[311297770,1705045842549,-339.45708523,0.00029799,2]
[311297771,1705045842558,-150.0,0.00029799,2]
[311297772,1705045842567,-323008.57432446,0.000298,2]
[311297774,1705045843260,159.64015465,0.00022498,2]
[311297775,1705045843522,-688.0,0.000239,2]
[311297776,1705045843531,-500.0,0.000274,2]
[311297777,1705045843540,-156.99059275,0.000274,2]
[311297778,1705045843552,-343.00940725,0.000274,2]
[311297779,1705045843561,-67.03678599,0.000274,2]
[311297780,1705045843572,-324.83345453,0.000274,2]
[311297781,1705045843600,-108.12975948,0.000274,2]
[311297782,1705045843609,-228.84353683,0.000274,2]
[311297783,1705045843621,-271.15646317,0.000274,2]
[311297784,1705045843630,-368.88453683,0.000274,2]
[311297785,1705045843750,-131.11546317,0.000274,2]
[311297786,1705045843760,-500.0,0.000274,2]
[311297787,1705045843769,-500.0,0.000274,2]
[311297788,1705045843778,-500.0,0.000274,2]
[311297789,1705045843787,-500.0,0.000274,2]
[311297790,1705045843796,-203838.42153393,0.000298,2]
[311297791,1705045843807,-332.96938453,0.000298,2]
[311297792,1705045843817,-983.82216087,0.000298,2]
[311297793,1705045843828,-1346.31370766,0.000298,2]
[311297794,1705045843840,-509.73860691,0.000298,2]
[311297795,1705045843851,-649.02,0.000298,2]
[311297796,1705045843966,-330.0,0.000298,2]
[311297797,1705045843976,-495.56335415,0.000298,2]
[311297798,1705045843987,-831.8685269,0.000298,2]
[311297799,1705045844332,-242.95364205,0.00022926,2]
[311297800,1705045844341,-215.072,0.0002692,2]
[311297801,1705045844350,-500.0,0.000274,2]
[311297802,1705045844359,-500.0,0.000274,2]
[311297803,1705045844368,-500.0,0.000274,2]
[311297804,1705045844377,-500.0,0.000274,2]
[311297805,1705045844386,-500.0,0.000274,2]
[311297806,1705045844395,-52150.55729561,0.000298,2]
[311297807,1705045844404,-195.7410408,0.000298,2]
[311297808,1705045844413,-66802.85129293,0.000298,2]
[311297809,1705045844423,-3000.0,0.000298,2]
[311297810,1705045844435,-248.10655358,0.00029863,2]
[311297811,1705045844447,-149.46510549,0.00029863,2]
[311297812,1705045844456,-392.41968532,0.00029889,2]
[311297813,1705045844467,-69.98031468,0.00029889,2]
[311297814,1705045844476,-8258.2228549,0.000299,2]
[311297815,1705045844488,-7473.9466717,0.000299,2]
[311297816,1705045844499,-1239.07493991,0.000299,2]
[311297817,1705045844510,-151.93904374,0.00029917,2]
[311297818,1705045844519,-150.0,0.00029919,2]
[311297819,1705045844529,-150.0,0.00029919,2]
[311297820,1705045844539,-219.335,0.0002992,2]
[311297821,1705045844549,-491.081,0.0002992,2]
[311297822,1705045844560,-1381.13910611,0.0002992,2]
[311297823,1705045844575,-500.0,0.000274,2]
[311297824,1705045844585,-403.19292286,0.0002992,2]
[311297825,1705045844597,-66.66797103,0.0002992,2]
[311297826,1705045844606,-835.0,0.0002992,2]
[311297827,1705045844615,-466.13391159,0.0002992,2]
[311297828,1705045844626,-478.86608841,0.0002992,2]
[311297829,1705045844635,-1252.0,0.0002992,2]
[311297830,1705045844644,-200.394,0.0002992,2]
[311297831,1705045844653,-1234.0,0.0002992,2]
[311297832,1705045844662,-1138.0,0.0002992,2]
[311297833,1705045844673,-995.0,0.0002992,2]
[311297834,1705045844684,-214.12221396,0.0002992,2]
[311297835,1705045844701,-1192.9975616,0.0002992,2]
[311297836,1705045844715,-523.88022444,0.0002992,2]
[311297837,1705045844726,-879.0,0.0002992,2]
[311297838,1705045844736,-235.0,0.0002992,2]
[311297839,1705045844746,-425.0,0.0002992,2]
[311297840,1705045844756,-318.0,0.0002992,2]
[311297841,1705045844766,-507.0,0.0002992,2]
[311297842,1705045844775,-4059.49122161,0.0002992,2]
[311297843,1705045844787,-266.43816103,0.0002992,2]
[311297844,1705045844799,-1243.07061736,0.0002992,2]
[311297845,1705045844807,-1826.56827348,0.0002992,2]
[311297846,1705045844818,-443.43172652,0.0002992,2]
[311297847,1705045844828,-1145.51111632,0.0002992,2]
[311297848,1705045844843,-541.44165718,0.0002992,2]
[311297849,1705045844854,-272.49789144,0.0002992,2]
[311297850,1705045844866,-11435.37471903,0.0002992,2]
[311297851,1705045844876,-569.85819587,0.0002992,2]
[311297852,1705045844888,-405.00113522,0.0002992,2]
[311297853,1705045844903,-717.14339935,0.0002992,2]
[311297854,1705045844914,-409.79455518,0.0002992,2]
[311297864,1705045845500,-159.64015465,0.00022546,2]
[311297865,1705045845686,-143.39116881,0.0002692,2]
[311297866,1705045845726,-9.19483119,0.0002692,2]
[311297867,1705045845735,-500.0,0.000274,2]
[311297868,1705045845744,-500.0,0.000274,2]
[311297869,1705045845753,-500.0,0.000274,2]
[311297870,1705045845762,-500.0,0.000274,2]
[311297871,1705045845771,-287.55516881,0.000274,2]
[311297872,1705045845783,-212.44483119,0.000274,2]
[311297873,1705045845793,-500.0,0.000274,2]
[311297874,1705045845802,-500.0,0.000274,2]
[311297875,1705045845811,-1381.54550156,0.0002992,2]
[311297876,1705045848117,-500.0,0.000274,2]
[311297877,1705045848126,-95.87151147,0.0002992,2]
[311297878,1705045848141,-2703.96031738,0.0002992,2]
[311297879,1705045848151,-213.11159351,0.0002992,2]
[311297880,1705045848203,-542.0,0.0002992,2]
[311297881,1705045853544,27029.0152,0.00022417,2]
[311297882,1705045886057,1191.4782,0.00022417,2]
[311297883,1705045891025,500.0,0.00022417,2]
[311297893,1705046197302,232.84,0.00022071,2]
[311297895,1705046213012,150.0,0.00022,2]
[311297901,1705046290042,351.92,0.00020307,2]
[311297905,1705046512758,151.23,0.00022243,2]
[311297906,1705046512831,151.23,0.0002232,2]
[311297907,1705046516116,151.23,0.00022397,2]
[311297908,1705046516367,151.23,0.00022474,2]
[311297910,1705046540178,15615.11,0.00021916,2]
[311297916,1705046598176,154.13,0.00021908,2]
[311297917,1705046716638,217.31,0.00021867,2]
[311297918,1705046763201,334.32,0.00019938,2]
[311297919,1705046763497,334.32,0.00022202,2]
[311297920,1705046827101,-155.31533874,0.00022519,2]
[311297929,1705046989841,151.23,0.00022019,2]
[311297930,1705046990057,151.23,0.00022124,2]
[311297931,1705046990285,151.23,0.00022228,2]
[311297932,1705046990478,151.23,0.00022332,2]
[311297933,1705046990855,151.23,0.00022437,2]
[311297947,1705047031586,-515.76938335,0.00022514,2]
[311297949,1705047031596,-150.0,0.00022515,2]
[311297951,1705047031605,-630.11452839,0.00022515,2]
[311297952,1705047031615,-153.35,0.00022521,2]
[311297953,1705047031624,-151.23,0.00022541,2]
[311297954,1705047031633,-22082.67368411,0.00022542,2]
[311297955,1705047031646,-943.99514713,0.00022542,2]
[311297956,1705047031661,-2224.53765689,0.00022542,2]
[311297957,1705047031673,-453.52110926,0.00022542,2]
[311297958,1705047031708,-1119.27792885,0.00022542,2]
[311297959,1705047031719,-1071.59938579,0.00022542,2]
[311297960,1705047031739,-360.33656028,0.00022542,2]
[311297961,1705047031751,-661.68277074,0.00022542,2]
[311297962,1705047031763,-2322.27333997,0.00022542,2]
[311297963,1705047031776,-391.16190787,0.00022542,2]
[311297964,1705047031800,-500.61671431,0.00022542,2]
[311297965,1705047031813,-2546.90102141,0.00022542,2]
[311297966,1705047031851,-350.0,0.00022542,2]
[311297967,1705047031862,-965.17012946,0.00022542,2]
[311297969,1705047031915,-6194.86897003,0.00022542,2]
[311297971,1705047031927,-39386.03522125,0.00022542,2]
[311297975,1705047037861,-397.0057847,0.00022542,2]
[311297976,1705047037919,-101182.34266795,0.00022542,2]
[311297977,1705047037929,-150.0,0.00022548,2]
[311297978,1705047037938,-1121.89847582,0.00022592,2]
[311297979,1705047037948,-151.23,0.00022645,2]
[311297980,1705047037957,-4424.2432,0.0002267,2]
[311297981,1705047037966,-378.35,0.0002267,2]
[311297982,1705047037976,-923.28,0.00022706,2]
[311297983,1705047037985,-159.04908582,0.00022716,2]
[311297984,1705047037995,-159.04908579,0.00022739,2]
[311297985,1705047038004,-150.99,0.00022739,2]
[311297986,1705047038013,-151.23,0.0002275,2]
[311297987,1705047038022,-159.04908579,0.00022762,2]
[311297988,1705047038030,-155.0,0.00022769,2]
[311297989,1705047038040,-833.60848674,0.00022769,2]
[311297990,1705047038050,-159.04908579,0.00022785,2]
[311297991,1705047038059,-499.99,0.000228,2]
[311297992,1705047038068,-323.39839969,0.000228,2]
[311297993,1705047038077,-159.04908579,0.00022808,2]
[311297994,1705047038088,-500.0,0.00022816,2]
[311297995,1705047038097,-159.04908579,0.00022831,2]
[311297996,1705047038106,-217.31,0.00022845,2]
[311297997,1705047038115,-907.52,0.00022848,2]
[311297998,1705047038125,-151.23,0.00022854,2]
[311297999,1705047038134,-159.04908579,0.00022854,2]
[311298000,1705047038143,-159.04908579,0.00022877,2]
[311298001,1705047038152,-13345.6651,0.000229,2]
[311298002,1705047038162,-1000.0,0.000229,2]
[311298003,1705047038171,-245000.0,0.000229,2]
[311298004,1705047038179,-159.04908579,0.000229,2]
[311298005,1705047038188,-643.8409093,0.000229,2]
[311298006,1705047038197,-170.50732974,0.000229,2]
[311298007,1705047038207,-1168895.34192,0.000229,2]
[311298008,1705047038218,-443.77572152,0.000229,2]
[311298009,1705047038227,-443.77572152,0.00022931,2]
[311298010,1705047038236,-151.23,0.00022958,2]
[311298011,1705047038245,-443.77572152,0.00022962,2]
[311298012,1705047038254,-3257.4305703,0.00022999,2]
[311298013,1705047038263,-9188.15764392,0.00022999,2]
[311298014,1705047038273,-150.0,0.00022999,2]
[311298015,1705047038282,-150.0,0.00022999,2]
[311298016,1705047038291,-150.0,0.00022999,2]